Cogmind - Beta 17.1 @@@ ROGUE MODE // 2026.09.13 @ 13:47:10 Player: UnderDoug Result: Destroyed by as-06639 with Assembled Rifle Performance ------------- Evolutions (0) 0 Regions Visited (4) 800 Robots Destroyed (23) 115 Value Destroyed (507) 507 Prototype IDs (2) 40 Alien Tech Used (0) 0 Bonus (0) 0 TOTAL SCORE: 1462 Bonus ------- None Cogmind --------- Core Integrity 0/250 Matter 266/300 Energy 310/310 System Corruption 0% Temperature Cool (38) Movement Treading (240) Ox1 Location -9/Mines Parts ------- > --- POWER (1) -------- Fission Core > --- PROPULSION (2) --- Light Treads > --- UTILITY (2) ------ Large Storage Unit Seismic Detector > --- WEAPON (2) ------- Makeshift Hammer > --- INVENTORY (15) --- Light Nuclear Core Aluminum Leg Aluminum Leg Aluminum Leg Aluminum Leg Flight Unit Flight Unit Flight Unit Scrap Suit Large Matter Pod (150) Makeshift Hacking Suite Rocket Launcher Mining Laser Peak State ------------ > --- POWER ------------ Fission Core > --- PROPULSION ------- Light Treads Light Treads > --- UTILITY ---------- Large Storage Unit Seismic Detector > --- WEAPON ----------- Light Assault Rifle Bore Cannon > --- INVENTORY -------- Light Nuclear Core Aluminum Leg Aluminum Leg Aluminum Leg Aluminum Leg Flight Unit Flight Unit Flight Unit Scrap Suit Large Matter Pod Makeshift Hacking Suite Rocket Launcher Mining Laser Makeshift Hammer [Rating: 18] Favorites ----------- Power Light Nuclear Core Engine Ion Engine Power Core Light Nuclear Core Propulsion Aluminum Leg Treads Light Treads Leg Aluminum Leg Utility Seismic Detector Device Seismic Detector Storage Large Storage Unit Weapon Light Assault Rifle Energy Gun Small Laser Ballistic Gun Light Assault Rifle Ballistic Cannon Bore Cannon Launcher Grenade Launcher Impact Weapon Hammer Build | -11 -10 -10 -10 -9 ------- Run | Yrd Mat Min Exi Min Slots Evolved . | . . . . . Power . | . . . . . Propulsion . | . . . . . Utility . | . . . . . Weapon . | . . . . . Parts Attached 27 | 8 14 2 1 2 Power 4 | 1 2 . . 1 Engine 2 | 1 1 . . . Core 2 | . 1 . . 1 Reactor . | . . . . . Propulsion 9 | 2 7 . . . Treads 2 | . 2 . . . Leg 7 | 2 5 . . . Wheel . | . . . . . Hover . | . . . . . Flight . | . . . . . Utility 4 | 2 2 . . . Device 2 | 1 1 . . . Storage 2 | 1 1 . . . Processor . | . . . . . Hackware . | . . . . . Protection . | . . . . . Artifact . | . . . . . Weapon 10 | 3 3 2 1 1 Energy Gun 3 | 1 1 1 . . Energy Cannon . | . . . . . Ballistic Gun 2 | 2 . . . . Ballistic Cannon 1 | . . . . 1 Launcher 2 | . 2 . . . Special Weapon . | . . . . . Impact Weapon 2 | . . 1 1 . Slashing Weapon . | . . . . . Piercing Weapon . | . . . . . Special Melee Weapon . | . . . . . Unidentified Prototypes . | . . . . . Parts Lost 5 | . 2 . . 3 Power 1 | . 1 . . . Propulsion 1 | . . . . 1 Utility . | . . . . . Weapon 3 | . 1 . . 2 Highest Loss Streak 3 | . 2 . . 3 To Critical Strikes . | . . . . . Average Backups 13 | 5 13 14 13 13 Power 1 | . 2 1 1 1 Propulsion 7 | 3 8 7 7 7 Utility 2 | . 1 2 2 3 Weapon 2 | . 1 2 3 2 Tool/Special . | . . . . . Unused Backups 17 | . 3 3 . 11 Power 3 | . 1 1 . 1 Propulsion 8 | . 2 1 . 5 Utility 4 | . . 1 . 3 Weapon 2 | . . . . 2 Tool/Special . | . . . . . Average Slot Usage (%) 99 | . 99 100 100 97 Engine 2 | . 4 . . . Core 11 | . 9 14 14 14 Treads 12 | . . 28 28 26 Leg 15 | . 27 . . . Device 14 | . 14 14 14 14 Storage 14 | . 14 14 14 14 Energy Gun 6 | . 8 6 . . Ballistic Gun 15 | . 16 14 14 12 Launcher 1 | . 2 . . . Impact Weapon 4 | . . 7 14 10 Peak Build Rating 18 | 7 12 12 14 18 Average Rating 10 | 5 9 11 12 15 On Entrance 8 | . 7 10 11 14 Avg Prop Armor Cover (%) . | . . . . . Naked Turns . | . . . . . Heaviest Build 36 | 13 30 30 30 36 Greatest Support 40 | 20 40 40 40 40 Greatest Overweight (x) 2 | 2 1 . . 1 Average Overweight (x) . | . . . . . Largest Inventory Capacity 15 | 8 15 15 15 15 Average Capacity 14 | 7 14 15 15 15 Most Carried 15 | 7 15 15 15 15 Average Carried 13 | 5 13 14 14 14 Final Capacity 15 | 8 15 15 15 15 Final Carried 15 | 7 15 15 15 14 Class Distribution -------------------- 72% | Mutant 27% | Scavenger-Mutant Dominant Class ---------------- Scavenger-Mutant | -10/Materials Mutant | -10/Mines Mutant | -10/Exiles Mutant | -9/Mines Resources | -11 -10 -10 -10 -9 ----------- Run | Yrd Mat Min Exi Min Matter Collected 818 | 260 438 41 . 79 Remotely . | . . . . . Salvage Created 666 | 115 511 8 12 20 Parts 47 | 4 37 6 . . Haulers Intercepted . | . . . . . Recyclers Shooed . | . . . . . Parts Field Recycled . | . . . . . Retrieved Matter . | . . . . . Parts Self-Destructed . | . . . . . Prevented . | . . . . . Parts Restored . | . . . . . Kills | -11 -10 -10 -10 -9 ------- Run | Yrd Mat Min Exi Min Combat Hostiles Destroyed 19 | . 14 3 . 2 Melee 1 | . . . . 1 Guns 13 | . 12 . . 1 AOE 5 | . 2 3 . . Classes Destroyed 7 | 2 4 . . 1 Worker 2 | . 2 . . . Tunneler 1 | 1 . . . . Recycler 1 | 1 . . . . Watcher 2 | . 2 . . . Swarmer 6 | . 3 3 . . Grunt 11 | . 11 . . . Assembled 2 | . . . . 2 Best Kill Streak 4 | 2 4 3 . 1 Combat Bots Only 3 | . 3 3 . 1 Max Kills in Single Turn 3 | 1 2 3 . 1 Gunslinging . | . . . . . Exploded 3 | . 1 3 . . Melee 1 | . . . . 1 Uniques/NPCs Destroyed . | . . . . . Combat | -11 -10 -10 -10 -9 -------- Run | Yrd Mat Min Exi Min Hostile Shots Fired 129 | . 69 2 . 58 Missed 34 | . 24 1 . 9 Hits 95 | . 45 1 . 49 Melee 5 | . . . . 5 Projectile 90 | . 45 1 . 44 Critical Strikes 1 | . . . . 1 Damage Taken 1281 | . 541 8 . 732 Core 263 | . 106 8 . 149 Absorbed by Shields . | . . . . . Regen/Repaired (Parts) 100 | . 100 . . . Core Remaining (%) 100 | 100 . . . . Volleys Fired 114 | 12 83 1 . 18 Largest 2 | 2 2 2 . 2 Hottest 70 | 40 70 50 . 68 Shots Fired 183 | 24 129 2 . 28 Gun 169 | 24 126 1 . 18 Cannon 10 | . . . . 10 Launcher 4 | . 3 1 . . Special . | . . . . . Kinetic 160 | 24 107 1 . 28 Thermal 19 | . 19 . . . Explosive 4 | . 3 1 . . Electromagnetic . | . . . . . Robot Hit Streak 12 | 4 12 2 . 6 Robot Miss Streak 8 | 3 3 . . 8 Penetration Max . | . . . . . Secondary Targets . | . . . . . Shots Hit Robots 100 | 13 73 1 1 12 Core Hits 48 | 4 38 2 . 4 Critical Kills 1 | . 1 . . . Critical Parts Destroyed 3 | . . . . 3 Critical Strikes 5 | . 2 . . 3 Burn 1 | . 1 . . . Destroy 4 | . 1 . . 3 Melee Attacks 5 | . . . 1 4 Impact 5 | . . . 1 4 Slashing . | . . . . . Piercing . | . . . . . Sneak Attacks . | . . . . . Combat Hostiles . | . . . . . Follow-up Attacks . | . . . . . Damage Inflicted 1391 | 109 798 146 92 246 Guns 885 | 109 696 . . 80 Cannons 111 | . . . . 111 Explosions 247 | . 101 146 . . Melee 147 | . . . 92 55 Ramming 1 | . 1 . . . Kinetic 822 | 109 522 . . 191 Thermal 174 | . 174 . . . Explosive 247 | . 101 146 . . Electromagnetic . | . . . . . Impact 147 | . . . 92 55 Slashing . | . . . . . Piercing . | . . . . . Highest Corruption . | . . . . . Average Corruption . | . . . . . Corruption Purged . | . . . . . Corruption Blocked . | . . . . . Overload Shots . | . . . . . Overflow Damage 103 | . . 28 57 18 Projectiles 3 | . . . . 3 Explosions 28 | . . 28 . . Melee 72 | . . . 57 15 Knockbacks 4 | . . . 1 3 Impact 1 | . . . 1 . Kinetic 3 | . . . . 3 Secondary . | . . . . . Self-Inflicted Damage 2 | . 2 . . . Shots 1 | . 1 . . . Rammed . | . . . . . Targets Rammed 2 | . 2 . . . Kicked 2 | . 2 . . . Crushed . | . . . . . Highest Temperature 250 | . 100 14 . 250 Average Temperature 50 | . 19 10 . 106 Received Heat Transfer 358 | . 258 . . 100 Siege Activations . | . . . . . Martial Activations . | . . . . . Shielding Activations . | . . . . . Robots Disrupted . | . . . . . Combat Hostiles . | . . . . . Robots Corrupted 1 | . . . 1 . Combat Hostiles 1 | . . . 1 . Parts Fried . | . . . . . Impact Corruptions 3 | . . . 2 1 Robots Melted . | . . . . . Combat Hostiles . | . . . . . Parts Melted 2 | . 2 . . . Heat Transferred 556 | . 556 . . . Parts Sabotaged . | . . . . . Parts Stolen . | . . . . . Parts Stripped . | . . . . . Power Chain Reactions . | . . . . . Alert | -11 -10 -10 -10 -9 ------- Run | Yrd Mat Min Exi Min Maximum Alert Level . | . . . . . Low Security (%) 100 | 100 100 100 . 100 Level 1 . | . . . . . Level 2 . | . . . . . Level 3 . | . . . . . Level 4 . | . . . . . Level 5 . | . . . . . High Security . | . . . . . Max Security . | . . . . . Peak Influence 103 | 5 103 80 . 4 Initial . | . . . . . Average 17 | . 22 8 . . Influence Increases 548 | 10 453 80 . 5 Destroy 0b10 Robot/C 340 | . 280 60 . . Destroy 0b10 Robot/NC 30 | 10 20 . . . Destroy Leader 64 | . 54 10 . . Successful Hack 42 | . 42 . . . Destroy Structure 27 | . 12 10 . 5 Lose Combat Pursuer 45 | . 45 . . . Influence Decreases 548 | 10 453 80 . 5 Time Decay 527 | 10 433 80 . 4 Lost Part 21 | . 20 . . 1 Squads Dispatched 2 | . 2 . . . Investigation 1 | . 1 . . . Extermination . | . . . . . Reinforcement 1 | . 1 . . . Assault . | . . . . . Garrison . | . . . . . Intercept . | . . . . . Searches Triggered . | . . . . . Construction Impeded . | . . . . . Haulers Reinforced . | . . . . . Active Scanning Responses . | . . . . . Cargo Convoy Interrupts . | . . . . . Stealth | -11 -10 -10 -10 -9 --------- Run | Yrd Mat Min Exi Min Distress Signals 2 | . 1 . . 1 Communications Jammed . | . . . . . Distress Signals . | . . . . . Times Spotted 40 | . 23 3 . 14 Peak Tracking Total 6 | . 3 3 . 6 Tactical Retreats 6 | . 3 . . 3 Traps | -11 -10 -10 -10 -9 ------- Run | Yrd Mat Min Exi Min Traps Triggered 3 | . 3 . . . Indirectly . | . . . . . Trap Hack Attempts . | . . . . . Triggered . | . . . . . Disarmed . | . . . . . Reprogrammed . | . . . . . Reused . | . . . . . Traps Extracted . | . . . . . Installed . | . . . . . Triggered . | . . . . . Machines | -11 -10 -10 -10 -9 ---------- Run | Yrd Mat Min Exi Min Machines Disabled . | . . . . . Max in Single Turn . | . . . . . Machines Repaired . | . . . . . Machines Dismantled . | . . . . . Machines Sabotaged . | . . . . . Overloaded Fab Kills . | . . . . . Hacking | -11 -10 -10 -10 -9 --------- Run | Yrd Mat Min Exi Min Machines Accessed 9 | . 9 . . . Terminals 7 | . 7 . . . Fabricators . | . . . . . Repair Stations 1 | . 1 . . . Recycling Units 1 | . 1 . . . Scanalyzers . | . . . . . Garrison Access . | . . . . . Total Hacks 26 | . 26 . . . Successful 15 | . 15 . . . Failed 11 | . 11 . . . Catastrophic 1 | . 1 . . . Database Lockouts . | . . . . . Manual 19 | . 19 . . . Terminals 21 | . 21 . . . Fabricators . | . . . . . Repair Stations 4 | . 4 . . . Recycling Units 1 | . 1 . . . Scanalyzers . | . . . . . Garrison Access . | . . . . . Terminal Hacks 4 | . 4 . . . Prototype ID Bank 1 | . 1 . . . Branch Access Points 1 | . 1 . . . Emergency Access Points 1 | . 1 . . . Zone Layout 1 | . 1 . . . Fabricator Hacks . | . . . . . Repair Station Hacks 4 | . 4 . . . Scan Component 2 | . 2 . . . Repair 2 | . 2 . . . Recycling Unit Hacks 1 | . 1 . . . Report Inventory 1 | . 1 . . . Scanalyzer . | . . . . . Garrison Access Hacks . | . . . . . Unauthorized Hacks 6 | . 6 . . . Terminals 6 | . 6 . . . Skim 6 | . 6 . . . Fabricators . | . . . . . Repair Stations . | . . . . . Recycling Units . | . . . . . Scanalyzers . | . . . . . Garrison Access . | . . . . . Data Cores Recovered . | . . . . . Used . | . . . . . Hacking Detections 6 | . 6 . . . Full Trace Events . | . . . . . Feedback Events . | . . . . . Feedback Blocked . | . . . . . Robot Schematics Acquired . | . . . . . Robots Built . | . . . . . Authchips . | . . . . . Time . | . . . . . Total Robot Build Rating . | . . . . . Part Schematics Acquired . | . . . . . Parts Built . | . . . . . Authchips . | . . . . . Time . | . . . . . Total Part Build Rating . | . . . . . Part Studies Acquired . | . . . . . Parts Repaired 2 | . 2 . . . Time 64 | . 64 . . . Parts Recycled . | . . . . . Recycled Matter . | . . . . . Retrieved Matter . | . . . . . Retrieved Components . | . . . . . Parts Scanalyzed . | . . . . . Part Schematics Acquired . | . . . . . Parts Damaged . | . . . . . Bothacking | -11 -10 -10 -10 -9 ------------ Run | Yrd Mat Min Exi Min Used RIF Installer . | . . . . . Robots Hacked . | . . . . . Non-combat . | . . . . . Combat . | . . . . . Robot Hacks Applied . | . . . . . Relay Couplers Released . | . . . . . Fabnet Peak Effective % . | . . . . . Robots Rewired . | . . . . . Allies Hacked . | . . . . . Hacks Repelled . | . . . . . Allies | -11 -10 -10 -10 -9 -------- Run | Yrd Mat Min Exi Min Total Allies 3 | . . 3 . . Largest Group 3 | . . 3 3 3 Highest-Rated Group 40 | . . 40 40 40 Highest-Rated Ally 16 | . . 16 16 16 Total Orders . | . . . . . Ally Attacks 10 | . . . . 10 Total Damage 108 | . . . . 108 Kills 2 | . . . . 2 Allies Corrupted . | . . . . . Allies Melted . | . . . . . Intel | -11 -10 -10 -10 -9 ------- Run | Yrd Mat Min Exi Min Active Infowar (turns) 4057 | 27 2179 868 872 111 Seismic 4057 | 27 2179 868 872 111 Robot Analysis Total . | . . . . . Derelict Logs Recovered 1 | . . 1 . . Drone Launches . | . . . . . Drone Recoveries . | . . . . . Exploration | -11 -10 -10 -10 -9 ------------- Run | Yrd Mat Min Exi Min Turns Passed 4280 | 122 2307 868 872 111 Spaces Moved 1835 | 63 696 504 540 32 Core 11 | 11 . . . . Treads 1109 | . 33 504 540 32 Legs 715 | 52 663 . . . Wheels . | . . . . . Hover . | . . . . . Flight . | . . . . . Fastest Speed 50 | 50 120 160 160 160 Average Speed 165 | 114 177 160 160 165 Slowest Speed 240 | 150 190 160 160 240 Overloaded Moves . | . . . . . Propulsion Burnouts . | . . . . . Robots Hopped . | . . . . . Potential Cave-ins . | . . . . . Cave-ins Triggered . | . . . . . Exploration Rate (%) 59 | 4 91 98 93 11 Regions Visited 4 Branch Regions 3 Pre-discovered Areas 2 | . 1 1 . . Known Exits Taken 1 | . 1 . . . Unknown Exits Taken 3 | 1 . 1 1 . Scrap Searched 1 | . . 1 . . Spaces Dug . | . . . . . Terrain Destroyed 33 | . 12 13 . 8 Melee . | . . . . . Projectile 8 | . . . . 8 AOE 25 | . 12 13 . . Terrain Rammed . | . . . . . Walls Destroyed . | . . . . . Machines Disabled . | . . . . . Actions | -11 -10 -10 -10 -9 --------- Run | Yrd Mat Min Exi Min Total 2921 | 90 1655 566 547 63 Wait 871 | . 820 46 2 3 Move 1831 | 62 695 503 539 32 Hop . | . . . . . Pick Up 33 | 8 17 6 1 1 Fast Attach 11 | 6 5 . . . Attach 4 | 1 2 . . 1 Detach . | . . . . . Swap 24 | 1 17 3 1 2 Drop 25 | . 14 7 2 2 Fire 114 | 12 83 1 . 18 Melee 5 | . . . 1 4 Ram . | . . . . . Kick 2 | . 2 . . . Crush . | . . . . . Escape Stasis . | . . . . . Rewire 1 | . . . 1 . Trap . | . . . . . Miscellaneous . | . . . . . Route ------- -11/Scrapyard -10/Materials (discovered 6 exits: *Mat x3 / *Min x2 / *Sub) -10/Mines (discovered 4 exits: *Mat x2 / *Exi / *Sub) -10/Exiles (discovered 2 exits: [*Min x2]) -9/Mines (discovered 1 exit: Mat) History --------- Turn | Location | Event 16 | -11/Scrapyard | Discovered new exit (range 16) 123 | -11/Scrapyard | Entered Materials 300 | -10/Materials | Discovered new exit (range 15) 314 | -10/Materials | Build established: Mutant 493 | -10/Materials | Discovered new exit (range 14) 1239 | -10/Materials | Discovered new exit (range 16) 1388 | -10/Materials | Identified exit to Mines 1507 | -10/Materials | Build established: Scavenger-Mutant 1565 | -10/Materials | Identified exit to Materials 1565 | -10/Materials | Identified exit to Subcaves 1637 | -10/Materials | Learned location of 1 exit from Storage 1749 | -10/Materials | Learned location of 2 exits from Materials 1793 | -10/Materials | Learned Storage stockpile data 1825 | -10/Materials | Learned location of 1 exit from Recycling 1869 | -10/Materials | Learned location of Mines (-9) 1922 | -10/Materials | Loaded intel: 19 trap records 2113 | -10/Materials | Repaired Lgt. Nuclear Core 2140 | -10/Materials | Repaired Lgt. Assault Rifle 2430 | -10/Materials | Entered Mines 2475 | -10/Mines | Found a Scrap Suit stashed away for nefarious purposes 2479 | -10/Mines | Found Scrap Suit 2657 | -10/Mines | Build established: Mutant 2657 | -10/Mines | Assisted by bots powering up and referring to "LRC-V3" 2685 | -10/Mines | Discovered exit to Subcaves (range 5) 2914 | -10/Mines | Learned location of Storage (-9) 3257 | -10/Mines | Received a Rocket Launcher from a helpful Derelict 3292 | -10/Mines | Deemed a non-threat by the Exiles lab entrance 3292 | -10/Mines | Discovered new exit (range 5) 3298 | -10/Mines | Entered Exiles 3298 | -10/Exiles | Found Exiles lab destroyed 3298 | -10/Exiles | Accompanied by 3 allies 3326 | -10/Exiles | Discovered new exit (range 14) 4124 | -10/Exiles | Discovered new exit (range 10) 4170 | -10/Exiles | Entered Mines 4170 | -9/Mines | Accompanied by 3 allies 4171 | -9/Mines | Assembled infested the area 4171 | -9/Mines | Identified exit to Materials 4176 | -9/Mines | Assisted by a Guerilla fighting off Assembled 4198 | -9/Mines | Core integrity fell below 50% 4260 | -9/Mines | Lost 4 allies 4273 | -9/Mines | Core integrity fell below 20% 4281 | -9/Mines | Destroyed by as-06639 with Assembled Rifle Last Messages --------------- as-22670 knocked back. Critical hit (Burn: +80). HV Slug penetrates as-65957. as-65957 suffers critical hit (Destroy). Destroyed Asb. F-torch. as-65957 knocked back. HV Slug penetrates as-65957. as-65957 suffers critical hit (Destroy). Destroyed Asb. Hover Unit. HV Slug penetrates Earth. HV Slug penetrates Wall. K-01 Serf destroyed. Bore Cannon destroyed. Destroyed Asb. Hover Unit. as-33636 system corrupted by crushing effect. as-33636 destroyed. Lgt. Treads destroyed. Lgt. Assault Rifle destroyed. Acquired 31 matter. Acquired 4 matter. Map ----- +----------------------------------------------------+ | ?????????????????????????????????????????????????? | | ?????????????????????????????????????????????????? | | ?????????????????????????????????????????????????? | | ?????????????????????????????????????????????????? | | ?????????????????????????????????????????????????? | | ?????????????????????????????????????????????????? | | ?????????????????????????????????????????????????? | | ?????????????????????????????????????????????????? | | ?????????????####????????????????????????????????? | | ????????????## ##???????????????????????????????? | | ????????????# #???????????????????????????????? | | ????????????# #???????????????????????????????? | | ???????????## ##???????????????????????????????? | | ???????????# ##????????????????????????????????? | | ??????????## ##?????????????????????????????????? | | ??????????# #??????????????????????????????????? | | ??????????# ##?????????????????????????????????? | | ??????????# ####??????????????????????????????? | | ??????????# ##?????????????#???????????????? | | ?????????## ##??????????? #???????????????? | | ?????????# [ ######?????%=#???????????????? | | ????????## =%!%#;#;######!*????????????????? | | ???????## =%% % ????????????????? | | ???????# = aa % ????????????????? | | ??????# ## ##;;;a#;##### !% ??????? | | ??? ###?# [@a*! #????????????? | | ?? #????# ## ####a;##;##% #????????????? | | ? ###????# ### #??# # #??????????????????? | | ? ????????# #?# #??#### #?????????????????? | | ? ?????????## ?# #??????##?????????????????? | | ?????????????## #?????????????????????????? | | ??????????????## ####?????????????????????????? | | ???????????????## ##????????????????????????????? | | ????????????????####?????????????????????????????? | | ?????????????????????????????????????????????????? | | ?????????????????????????????????????????????????? | | ?????????????????????????????????????????????????? | | ?????????????????????????????????????????????????? | | | | | | | | | | | | | | | | | | | | | | | | | +----------------------------------------------------+ Best States ------------- Heat Dissipation 39 Energy Generation 18 Energy Capacity 310 Matter Stores 300 Matter Capacity 300 Sight Range 16 Terrain Scan Density 10 Evasion (%) 55 Recoil Reduction 2 Item Schematics ----------------- None Robot Schematics ------------------ None Fabricated ------------ Nothing Repaired ---------- Lgt. Nuclear Core | 18% | -10/Materials Lgt. Assault Rifle | 26% | -10/Materials Studied --------- None Alien Tech Used ----------------- None Achievements -------------- Deductive Reasoning Challenges ------------ None Game ------ Seed RelayTransmissionBiocell Manual? 0 Play Time 00:31:25 Cumulative 20.0 hours Start 2026.09.13 @ 13:15:19 End 2026.09.13 @ 13:47:10 Sessions 3 Manual Loads 0 Difficulty Rogue Special Mode None Game No. 39 Rogue 39 Adventurer 0 Explorer 0 Win Type - Total 0 Types 0/0/0/0/0/0/0/0/0/0 Lore% 32 Gallery% 18 Achievement% 16 Wizard Run 0 Options --------- Layout 2 ASCII 0 Keyboard 0 Movement Mouse Keybinds 0 Fullscreen 2 Font 24/Smallcaps Map View 50x44 Zoom Use 0% Tactical HUD 0 Map Filters NONE Filters NONE Steam 1 RUN: 9e4480f3-186b-42ef-a4ac-9736681eed77